fUSD/lending_fUSD_20240523
["ID","MTS","AMOUNT","RATE_DAILY","PERIOD"]
[327783352,1716475931706,1369.64,0.00022895,2]
[327783353,1716475931839,500.0,0.00022621,4]
[327783354,1716475932007,1369.64,0.00023169,2]
[327783355,1716475932327,500.0,0.00022895,5]
[327783356,1716475932391,1369.64,0.00023443,2]
[327783357,1716475932812,283.24064791,0.00023169,6]
[327783358,1716475937243,500.0,0.00021986,2]
[327783359,1716475937514,500.0,0.0002226,3]
[327783360,1716475937841,500.0,0.00022534,4]
[327783361,1716475938343,153.554332,0.00022604,2]
[327783362,1716475938450,500.0,0.00022808,5]
[327783363,1716475938773,316.64278324,0.00023082,6]
[327783364,1716475938918,484.52526474,0.00022592,2]
[327783365,1716475939466,484.52526474,0.00022918,2]
[327783366,1716475940013,484.52526474,0.0002298,2]
[327783367,1716475940527,514.59224612,0.00022073,2]
[327783368,1716475940587,484.52526474,0.00022999,2]
[327783369,1716475940651,625.0,0.000217,3]
[327783370,1716475940707,515.0,0.00022073,2]
[327783371,1716475941631,484.52526474,0.00023108,2]
[327783372,1716475942582,484.52526474,0.00023431,2]
[327783373,1716475944304,195.5451557,0.0002206,2]
[327783374,1716475944839,195.5451557,0.00022482,2]
[327783375,1716475945618,152.73750918,0.00023123,2]
[327783376,1716475945687,500.0,0.00022073,2]
[327783377,1716475945965,195.5451557,0.00022545,2]
[327783378,1716475946037,500.0,0.00022347,3]
[327783379,1716475946114,168.15999966,0.00023062,2]
[327783380,1716475946286,500.0,0.00022621,4]
[327783381,1716475946484,156.04052419,0.00022446,2]
[327783382,1716475946550,195.5451557,0.00022763,2]
[327783383,1716475946619,619.1287453,0.00022895,5]
[327783384,1716475947009,156.04052419,0.00023341,2]
[327783385,1716475947066,195.5451557,0.00023064,2]
[327783386,1716475947690,285.83007312,0.00022972,2]
[327783387,1716475948553,500.0,0.00022073,2]
[327783388,1716475948833,511.75429128,0.00022347,3]
[327783389,1716475950123,150.97582734,0.00022436,2]
[327783390,1716475950256,500.0,0.00022073,2]
[327783391,1716475950582,500.0,0.00022347,3]
[327783392,1716475950638,253.15635168,0.00022364,2]
[327783393,1716475950695,150.97582734,0.00023277,2]
[327783394,1716475950876,500.0,0.00022621,4]
[327783395,1716475951153,253.15635168,0.00022465,2]
[327783396,1716475951467,500.0,0.00022895,5]
[327783397,1716475951663,253.15635168,0.00022577,2]
[327783398,1716475951741,500.0,0.00023169,6]
[327783399,1716475951943,157.95633819,0.00023366,2]
[327783400,1716475952017,500.0,0.00023443,7]
[327783401,1716475952186,150.87239784,0.0002202,2]
[327783402,1716475952251,253.15635168,0.000235,2]
[327783403,1716475953573,150.87239784,0.00022617,2]
[327783404,1716475954000,157.47813498,0.00022888,2]
[327783405,1716475954189,150.87239784,0.00022885,2]
[327783406,1716475954437,153.3265387,0.00022604,2]
[327783407,1716475955024,153.3265387,0.0002286,2]
[327783408,1716475955426,500.0,0.00021986,2]
[327783409,1716475955484,500.0,0.00022073,2]
[327783410,1716475955569,153.3265387,0.00022902,2]
[327783411,1716475955756,500.0,0.00022347,3]
[327783412,1716475956272,500.0,0.00022621,4]
[327783413,1716475956335,500.0,0.0002226,3]
[327783414,1716475956424,500.0,0.00022895,5]
[327783415,1716475956607,500.0,0.00023169,6]
[327783416,1716475956679,500.0,0.00022534,4]
[327783417,1716475956881,500.0,0.00023443,7]
[327783418,1716475956961,500.0,0.00022808,5]
[327783419,1716475957240,500.0,0.00023082,6]
[327783420,1716475957521,500.0,0.00023356,7]
[327783421,1716475963818,500.0,0.00021986,2]
[327783422,1716475965984,500.0,0.00022073,2]
[327783423,1716475966274,500.0,0.00022347,3]
[327783424,1716475966331,500.0,0.00022073,2]
[327783425,1716475966593,616.80523821,0.00022347,3]
[327783426,1716475966893,500.0,0.00022621,4]
[327783427,1716475967527,500.0,0.00022895,5]
[327783428,1716475967794,500.0,0.00023169,6]
[327783429,1716475967853,560.46229329,0.00021986,2]
[327783430,1716475968387,500.0,0.00023443,7]
[327783431,1716475969131,505.21663656,0.00022073,2]
[327783432,1716475971109,521.66158145,0.00022073,2]
[327783433,1716475971685,503.5483379,0.00021986,2]
[327783434,1716475971864,510.77200544,0.00022073,2]
[327783435,1716475973695,299.59672562,0.00022073,2]
[327783436,1716475974516,500.0,0.00021986,2]
[327783437,1716475974787,500.0,0.0002226,3]
[327783438,1716475975061,500.0,0.00022534,4]
[327783439,1716475975359,500.0,0.00022808,5]
[327783440,1716475975855,456.0,0.00022703,2]
[327783441,1716475975975,500.0,0.00023082,6]
[327783442,1716475976278,430.52368919,0.00023356,7]
[327783443,1716475976571,500.0,0.00022073,2]
[327783444,1716475976819,513.89395379,0.00022073,2]
[327783445,1716475976876,500.0,0.00022347,3]
[327783446,1716475977154,500.0,0.00022621,4]
[327783447,1716475977454,500.0,0.00022895,5]
[327783448,1716475977742,500.0,0.00023169,6]
[327783449,1716475978338,351.86948825,0.00023443,7]
[327783450,1716475979134,500.0,0.00021986,2]
[327783451,1716475979381,513.54129291,0.00022073,2]
[327783452,1716475979439,500.0,0.0002226,3]
[327783453,1716475979723,246.34123933,0.00022534,4]
[327783454,1716475980547,505.43816116,0.00022073,2]
[327783455,1716475981565,500.0,0.00022073,2]
[327783456,1716475981886,3820.47,0.00022073,2]
[327783457,1716475981946,558.99635979,0.00022347,3]
[327783458,1716475981999,507.33548767,0.00021986,2]
[327783459,1716475982176,3820.47,0.00022347,3]
[327783460,1716475982517,3820.47,0.00022621,4]
[327783461,1716475982791,3820.47,0.00022895,5]
[327783462,1716475983049,3820.47,0.00023169,6]
[327783463,1716475983346,3820.47,0.00023443,7]
[327783464,1716475984415,500.0,0.00021986,2]
[327783465,1716475984694,500.0,0.0002226,3]
[327783466,1716475985251,506.5394212,0.00022073,2]
[327783467,1716475985314,500.0,0.00022534,4]
[327783468,1716475985582,500.0,0.00022808,5]
[327783469,1716475985880,500.0,0.00023082,6]
[327783470,1716475986134,500.0,0.00023356,7]
[327783471,1716475989218,505.42089052,0.00022073,2]
[327783472,1716475994544,500.0,0.00021986,2]
[327783473,1716475994721,2000.0,0.000227,2]
[327783474,1716475994865,500.0,0.0002226,3]
[327783475,1716475995127,500.0,0.00022534,4]
[327783476,1716475995410,500.0,0.00022808,5]
[327783477,1716475995698,500.0,0.00023082,6]
[327783478,1716475995904,500.0,0.00022073,2]
[327783479,1716475995994,500.0,0.00023356,7]
[327783480,1716475996191,500.0,0.00022347,3]
[327783481,1716475996772,500.0,0.00022621,4]
[327783482,1716475997420,155.30454673,0.00022895,5]
[327783483,1716475997478,500.0,0.00022073,2]
[327783484,1716475998080,500.0,0.00022347,3]
[327783485,1716475998398,500.0,0.00022621,4]
[327783486,1716475998693,500.0,0.00022895,5]
[327783487,1716475999003,500.0,0.00023169,6]
[327783488,1716475999379,500.0,0.00023443,7]
[327783489,1716475999436,1000.0,0.00030963,120]
[327783490,1716476002086,500.0,0.00021986,2]
[327783491,1716476002737,500.0,0.0002226,3]
[327783492,1716476003002,500.0,0.00022534,4]
[327783493,1716476003329,404.26992763,0.00022808,5]
[327783494,1716476004164,533.34238318,0.00022073,2]
[327783495,1716476004890,500.0,0.00022073,2]
[327783496,1716476004962,500.0,0.00022347,3]
[327783497,1716476005154,500.0,0.00022621,4]
[327783498,1716476005410,500.0,0.00022895,5]
[327783499,1716476005680,500.0,0.00023169,6]
[327783500,1716476005933,500.0,0.00023443,7]
[327783501,1716476006761,500.0,0.00022073,2]
[327783502,1716476007039,562.2472344,0.00022347,3]
[327783503,1716476007450,504.39096772,0.00021986,2]
[327783504,1716476008497,500.0,0.00022073,2]
[327783505,1716476008761,500.0,0.00022347,3]
[327783506,1716476009027,500.0,0.00022621,4]
[327783507,1716476009315,361.26496115,0.00022895,5]
[327783508,1716476009667,155.75,0.00013973,2]
[327783509,1716476009772,504.65031569,0.00021986,2]
[327783510,1716476010898,500.0,0.00022073,2]
[327783511,1716476011286,500.0,0.00022347,3]
[327783512,1716476011546,500.0,0.00022621,4]
[327783513,1716476011802,518.38,0.00022073,2]
[327783514,1716476011996,500.0,0.00022895,5]
[327783515,1716476012068,518.38,0.00022347,3]
[327783516,1716476012273,500.0,0.00023169,6]
[327783517,1716476012383,518.38,0.00022621,4]
[327783518,1716476012510,263.10827693,0.00023443,7]
[327783519,1716476012809,518.38,0.00022895,5]
[327783520,1716476012965,500.0,0.00021986,2]
[327783521,1716476013089,518.38,0.00023169,6]
[327783522,1716476013393,518.38,0.00023443,7]
[327783523,1716476013596,500.0,0.0002226,3]
[327783524,1716476013982,500.0,0.00022534,4]
[327783525,1716476014238,500.0,0.00022808,5]
[327783526,1716476014350,500.0,0.00022073,2]
[327783527,1716476014664,476.49503813,0.00022347,3]
[327783528,1716476015078,500.0,0.00023082,6]
[327783529,1716476015157,500.0,0.00023356,7]
[327783530,1716476015385,513.52973102,0.00022073,2]
[327783531,1716476018383,500.0,0.00022073,2]
[327783532,1716476018652,500.0,0.00022347,3]
[327783533,1716476018935,419.06256695,0.00022621,4]
[327783534,1716476019168,343.67272774,0.00016695,5]
[327783535,1716476020577,500.0,0.00021986,2]
[327783536,1716476020880,500.0,0.0002226,3]
[327783537,1716476021136,500.0,0.00022534,4]
[327783538,1716476021517,500.0,0.00022073,2]
[327783539,1716476021746,500.0,0.00022808,5]
[327783540,1716476021804,500.0,0.00022347,3]
[327783541,1716476023444,475.85609117,0.00022621,4]
[327783542,1716476023518,500.0,0.00023082,6]
[327783543,1716476023634,500.0,0.00023356,7]
[327783544,1716476025888,500.0,0.00022073,2]
[327783545,1716476026208,500.0,0.00022347,3]
[327783546,1716476026480,514.05094953,0.00022621,4]
[327783547,1716476026954,500.0,0.00022073,2]
[327783548,1716476027067,500.0,0.00021986,2]
[327783549,1716476027237,478.46335664,0.00022347,3]
[327783550,1716476029593,506.83145467,0.00022073,2]
[327783551,1716476031449,500.0,0.00021986,2]
[327783552,1716476031724,500.0,0.0002226,3]
[327783553,1716476031961,500.0,0.00022073,2]
[327783554,1716476032026,161.48182934,0.00022534,4]
[327783555,1716476032290,500.0,0.00022347,3]
[327783556,1716476032593,500.0,0.00022621,4]
[327783557,1716476033269,500.0,0.00022895,5]
[327783558,1716476033406,500.0,0.00023169,6]
[327783559,1716476034003,500.0,0.00023443,7]
[327783560,1716476034627,500.0,0.00021986,2]
[327783561,1716476034931,500.0,0.0002226,3]
[327783562,1716476035224,500.0,0.00022534,4]
[327783563,1716476035645,500.0,0.00022808,5]
[327783564,1716476035765,500.0,0.00023082,6]
[327783565,1716476036065,500.0,0.00023356,7]
[327783566,1716476036596,575.80822143,0.00022073,2]
[327783567,1716476038087,500.0,0.00022073,2]
[327783568,1716476038719,500.0,0.00022347,3]
[327783569,1716476038991,500.0,0.00022621,4]
[327783570,1716476039103,500.0,0.00022073,2]
[327783571,1716476039388,500.0,0.00022347,3]
[327783572,1716476039638,512.42194714,0.00022073,2]
[327783573,1716476039696,500.0,0.00022895,5]
[327783574,1716476039752,500.0,0.00022621,4]
[327783575,1716476039924,500.0,0.00023169,6]
[327783576,1716476039981,500.0,0.00022895,5]
[327783577,1716476040227,244.26305218,0.00023443,7]
[327783578,1716476040291,491.05372823,0.00023169,6]
[327783580,1716476042874,500.0,0.00022073,2]
[327783581,1716476043138,500.0,0.00022347,3]
[327783582,1716476043413,500.0,0.00022621,4]
[327783583,1716476043649,500.0,0.00022073,2]
[327783584,1716476043742,500.0,0.00022895,5]
[327783585,1716476043953,500.0,0.00022347,3]
[327783586,1716476044029,502.61236289,0.00023169,6]
[327783587,1716476044233,395.60209627,0.00022621,4]
[327783588,1716476046034,500.0,0.00021986,2]
[327783589,1716476046353,500.0,0.0002226,3]
[327783590,1716476046623,500.0,0.00022534,4]
[327783591,1716476046903,500.0,0.00022808,5]
[327783592,1716476047191,283.73621245,0.00023082,6]
[327783593,1716476048645,500.0,0.00022073,2]
[327783594,1716476049263,500.0,0.00022738,3]
[327783595,1716476049523,445.9656116,0.00022897,4]
[327783596,1716476049659,500.0,0.00021986,2]
[327783597,1716476054152,514.95202614,0.00021986,2]
[327783598,1716476057575,500.0,0.00022073,2]
[327783599,1716476057847,500.0,0.00022347,3]
[327783600,1716476058454,500.0,0.00022621,4]
[327783601,1716476058719,205.04097099,0.00022895,5]
[327783602,1716476061181,500.0,0.00022073,2]
[327783603,1716476061531,500.0,0.00022347,3]
[327783604,1716476061859,500.0,0.00022621,4]
[327783605,1716476062467,500.0,0.00022895,5]
[327783606,1716476062750,500.0,0.00023169,6]
[327783607,1716476063020,500.0,0.00023443,7]
[327783608,1716476063821,250.0,0.00022703,2]
[327783609,1716476067122,500.0,0.00022073,2]
[327783610,1716476067255,500.0,0.00022347,3]
[327783611,1716476067521,470.98518079,0.00022621,4]
[327783612,1716476069138,500.0,0.00021986,2]
[327783613,1716476069416,500.0,0.0002226,3]
[327783614,1716476069669,500.0,0.00022073,2]
[327783615,1716476069736,500.0,0.00022534,4]
[327783616,1716476069951,500.0,0.00022808,5]
[327783617,1716476070224,500.0,0.00023082,6]
[327783618,1716476070848,500.0,0.00023356,7]
[327783619,1716476072530,500.0,0.00022347,3]
[327783620,1716476072842,509.87552599,0.00022621,4]
[327783621,1716476075781,500.0,0.00022073,2]
[327783622,1716476076086,500.0,0.00022347,3]
[327783623,1716476076394,500.0,0.00022621,4]
[327783624,1716476076675,500.0,0.00022895,5]
[327783625,1716476076956,500.0,0.00023169,6]
[327783626,1716476077514,500.0,0.00023443,7]
[327783627,1716476080933,500.0,0.00022073,2]
[327783628,1716476083608,5512.46730855,0.00021,2]
[327783629,1716476083842,513.78475914,0.00021986,2]
[327783630,1716476086665,9156.94527158,0.00022,2]
[327783631,1716476090648,500.0,0.00021986,2]
[327783632,1716476091254,500.0,0.0002226,3]
[327783633,1716476091518,500.0,0.00022534,4]
[327783634,1716476091786,500.0,0.00022808,5]
[327783635,1716476092048,500.0,0.00023082,6]
[327783636,1716476092338,500.0,0.00023356,7]
[327783637,1716476097588,3647.0,0.00019725,2]
[327783638,1716476099543,500.0,0.00021986,2]
[327783639,1716476099868,500.0,0.0002226,3]
[327783640,1716476100141,500.0,0.00022534,4]
[327783641,1716476100432,500.0,0.00022808,5]
[327783642,1716476100678,500.0,0.00023082,6]
[327783643,1716476100938,500.0,0.00023356,7]
[327783644,1716476104202,3881.95677998,0.000192,2]
[327783645,1716476104764,2000.0,0.00023443,2]
[327783646,1716476106045,500.0,0.00021986,2]
[327783647,1716476106334,500.0,0.0002226,3]
[327783648,1716476106590,500.0,0.00022534,4]
[327783649,1716476106866,500.0,0.00022808,5]
[327783650,1716476107162,500.0,0.00023082,6]
[327783651,1716476107475,500.0,0.00023356,7]
[327783652,1716476109850,200.0,0.00023443,2]
[327783653,1716476111975,4056.67165731,0.00017259,2]
[327783654,1716476116687,34594.22130115,0.00019451,2]
[327783655,1716476120066,6772.86623355,0.000219,2]
[327783656,1716476124976,500.0,0.00022073,2]
[327783657,1716476126202,500.0,0.00022347,3]
[327783658,1716476126478,500.0,0.00022621,4]
[327783659,1716476127214,500.0,0.00022895,5]
[327783660,1716476127527,500.0,0.00023169,6]
[327783661,1716476127791,580.92687798,0.00023443,7]
[327783662,1716476135746,500.0,0.00021986,2]
[327783663,1716476136018,500.0,0.0002226,3]
[327783664,1716476136317,500.0,0.00022534,4]
[327783665,1716476136579,500.0,0.00022808,5]
[327783666,1716476136865,500.0,0.00023082,6]
[327783667,1716476137465,172.61045359,0.00023356,7]
[327783668,1716476145360,500.0,0.00022073,2]
[327783669,1716476145634,500.0,0.00022347,3]
[327783670,1716476146458,500.0,0.00022621,4]
[327783671,1716476146751,500.0,0.00022895,5]
[327783672,1716476147481,581.52,0.00023169,6]
[327783673,1716476150035,1013.51,0.00020744,2]
[327783674,1716476150309,1013.51,0.00023007,2]
[327783675,1716476154669,630.02,0.0002266,2]
[327783676,1716476161087,194.17845,0.00019932,2]
[327783677,1716476166507,236.86532116,0.00021986,2]
[327783678,1716476167297,230.8468,0.00019932,2]
[327783679,1716476221819,333.8,0.00022656,2]
[327783680,1716476231907,9156.94527158,0.000235,2]
[327783681,1716476238135,387.62021179,0.00022098,2]
[327783682,1716476238555,154.66364069,0.00023278,2]
[327783683,1716476238625,387.62021179,0.00022708,2]
[327783684,1716476242410,153.55433201,0.00022247,2]
[327783685,1716476245794,160.57154212,0.00022322,2]
[327783686,1716476246046,162.95429642,0.00022508,2]
[327783687,1716476246529,166.66666667,0.0002292,2]
[327783688,1716476246599,3647.0,0.000235,2]
[327783689,1716476246658,162.95429642,0.00022776,2]
[327783690,1716476247098,162.95429642,0.00022806,2]
[327783691,1716476247602,162.95429642,0.00023001,2]
[327783692,1716476249985,161.44222683,0.00022391,2]
[327783693,1716476250558,161.44222683,0.0002281,2]
[327783694,1716476251055,171.45756621,0.00022049,2]
[327783695,1716476251816,152.73750918,0.00022847,2]
[327783696,1716476252159,1249.46,0.00022658,2]
[327783697,1716476252575,152.73750918,0.00023381,2]
[327783698,1716476255639,219.40217146,0.00022607,2]
[327783699,1716476255779,157.9563382,0.00022143,2]
[327783700,1716476255930,154.03762696,0.00023244,2]
[327783701,1716476256119,219.40217146,0.00022747,2]
[327783702,1716476256728,219.40217146,0.00022923,2]
[327783703,1716476256854,157.9563382,0.00022747,2]
[327783704,1716476257141,6772.86623355,0.000235,2]
[327783705,1716476257290,219.40217146,0.00022928,2]
[327783706,1716476257349,157.9563382,0.00023004,2]
[327783707,1716476257984,219.40217146,0.00023001,2]
[327783708,1716476258297,153.3265387,0.00022282,2]
[327783709,1716476258356,156.04052419,0.00022027,2]
[327783710,1716476259370,153.3265387,0.00022529,2]
[327783711,1716476259439,156.04052419,0.00022475,2]
[327783712,1716476259913,156.04052419,0.00023254,2]
[327783713,1716476259975,153.3265387,0.00022834,2]
[327783714,1716476260413,153.3265387,0.00023298,2]
[327783715,1716476261917,155.07639621,0.0002211,2]
[327783716,1716476263501,155.07639621,0.00023129,2]
[327783717,1716476282069,2176.52,0.00022657,2]
[327783718,1716476339426,155.25,0.00021918,2]
[327783719,1716476373019,969.45,0.00022653,2]
[327783720,1716476377355,150.0,0.000235,3]
[327783721,1716476377756,150.0,0.00023,3]
[327783722,1716476378145,150.0,0.000225,3]
[327783723,1716476378572,150.0,0.00022,3]
[327783724,1716476378998,150.0,0.000215,3]
[327783725,1716476379452,150.0,0.00021,2]
[327783726,1716476379856,150.0,0.000205,2]
[327783727,1716476382932,5512.46730855,0.00021,2]
[327783728,1716476405736,2000.0,0.000235,2]
[327783729,1716476410474,1401.0,0.00020899,2]
[327783730,1716476410821,200.0,0.000235,2]
[327783731,1716476414582,974.0,0.00020899,2]
[327783733,1716476440779,500.0,0.00022651,2]
[327783734,1716476449701,1644.0,0.00021449,2]
[327783736,1716476452179,1263.0,0.00021449,2]
[327783737,1716476455722,613.0,0.00021449,2]
[327783738,1716476459893,439.0,0.00021449,2]
[327783739,1716476463267,1225.0,0.00021449,2]
[327783740,1716476492730,809.0,0.00021449,2]
[327783741,1716476495798,444.0,0.00021449,2]
[327783742,1716476495859,9156.94527158,0.00022,2]
[327783743,1716476498576,2396.0,0.00021449,2]
[327783744,1716476512638,2000.0,0.00022678,2]
[327783745,1716476514770,237.0,0.00021449,2]
[327783746,1716476517681,1236.988,0.00021449,2]
[327783747,1716476520844,298.0,0.00021449,2]
[327783748,1716476526748,151.25,0.00022848,2]
[327783749,1716476527030,151.25,0.0002298,2]
[327783750,1716476527436,151.25,0.00023113,2]
[327783751,1716476527834,151.25,0.00023245,2]
[327783752,1716476528066,151.25,0.00023377,2]
[327783753,1716476535216,3647.0,0.00019725,2]
[327783754,1716476535275,3163.0,0.00021449,2]
[327783755,1716476536820,361.77886434,0.00023303,2]
[327783756,1716476537407,153.55433201,0.00023122,2]
[327783757,1716476537905,153.55433201,0.00023169,2]
[327783758,1716476546250,151.31470382,0.00022286,2]
[327783759,1716476546822,150.97582734,0.00023132,2]
[327783760,1716476547307,151.31470382,0.00022406,2]
[327783761,1716476547860,151.31470382,0.00022522,2]
[327783762,1716476547927,159.18081808,0.00022074,2]
[327783763,1716476548350,151.31470382,0.0002257,2]
[327783764,1716476548887,151.31470382,0.00022843,2]
[327783765,1716476549259,154.03762696,0.0002307,2]
[327783766,1716476549347,151.31470382,0.00023286,2]
[327783767,1716476549637,156.04052419,0.00022545,2]
[327783768,1716476550134,156.04052419,0.00023409,2]
[327783769,1716476555609,153.3265387,0.00022563,2]
[327783770,1716476555676,150.87239784,0.00022569,2]
[327783771,1716476556093,153.3265387,0.00023168,2]
[327783772,1716476556168,150.87239784,0.00022615,2]
[327783773,1716476556580,153.3265387,0.00023311,2]
[327783774,1716476556889,182.83514288,0.00022256,2]
[327783775,1716476557411,182.83514288,0.00022785,2]
[327783776,1716476557919,182.83514288,0.00022801,2]
[327783777,1716476559007,182.83514288,0.00023296,2]
[327783778,1716476586425,219.13,0.00013973,2]
[327783779,1716476586664,219.13,0.00020447,2]
[327783782,1716476608602,2000.0,0.000235,2]
[327783783,1716476610038,2000.0,0.000235,2]
[327783786,1716476624032,1000.0,0.00022639,2]
[327783787,1716476632250,540.05,0.00022638,2]
[327783788,1716476642377,912.15,0.0002072,2]
[327783789,1716476645385,912.15,0.00022984,2]
[327783791,1716476669236,5512.46730855,0.00021,2]
[327783793,1716476705373,2000.0,0.000235,2]
[327783794,1716476711382,200.0,0.000235,2]
[327783795,1716476740692,250.0,0.00022731,2]
[327783796,1716476788290,9156.94527158,0.00022,2]
[327783797,1716476793182,3647.0,0.00019725,2]
[327783798,1716476837797,153.55433201,0.00022365,2]
[327783799,1716476838016,349.71956886,0.00022424,2]
[327783800,1716476845551,170.38049412,0.00022223,2]
[327783801,1716476845844,151.31470382,0.00022219,2]
[327783802,1716476846345,151.31470382,0.00022683,2]
[327783803,1716476847514,157.95633819,0.00023182,2]
[327783804,1716476848380,150.97582735,0.00022106,2]
[327783805,1716476848451,151.31470382,0.00022798,2]
[327783806,1716476849004,151.31470382,0.00022959,2]
[327783807,1716476849435,151.31470382,0.00023086,2]
[327783808,1716476850631,158.45712383,0.000221,2]
[327783809,1716476851148,158.45712383,0.00022263,2]
[327783810,1716476851601,153.3265387,0.00022055,2]
[327783811,1716476851662,158.45712383,0.00022363,2]
[327783812,1716476852131,153.3265387,0.00022545,2]
[327783813,1716476852199,158.45712383,0.00022875,2]
[327783814,1716476852604,153.3265387,0.0002265,2]
[327783815,1716476852687,158.45712383,0.00023051,2]
[327783816,1716476853190,153.3265387,0.00022959,2]
[327783817,1716476853255,158.45712383,0.00023102,2]
[327783818,1716476853674,158.45712383,0.00023267,2]
[327783819,1716476854133,150.87239784,0.00022724,2]
[327783820,1716476854197,158.45712383,0.00023307,2]
[327783821,1716476854657,157.47813498,0.00022129,2]
[327783822,1716476855851,1450.68,0.000227,2]
[327783823,1716476878847,419.38768292,0.0002341,2]
[327783824,1716476883128,406.11577146,0.00021343,2]
[327783825,1716476959708,500.0,0.00022712,2]
[327783826,1716476976814,150.0,0.000235,3]
[327783827,1716476977505,150.0,0.00023,3]
[327783828,1716476977674,171.46468,0.000225,3]
[327783829,1716477000938,484.72,0.00022712,2]
[327783830,1716477004738,2000.0,0.000235,2]
[327783831,1716477010342,200.0,0.000235,2]
[327783832,1716477014907,2000.0,0.0002271,2]
[327783833,1716477032088,-541.34856322,0.00023509,2]
[327783850,1716477032696,-681.33,0.00023509,2]
[327783851,1716477032729,-2424.32143678,0.00023509,2]
[327783852,1716477032739,-151.25,0.0002351,2]
[327783853,1716477032748,-3205.271935,0.0002351,2]
[327783854,1716477032758,-2000.0,0.0002351,2]
[327783855,1716477032767,-2000.0,0.0002352,2]
[327783856,1716477032776,-2000.0,0.0002353,2]
[327783857,1716477032786,-1320.18,0.0002353,2]
[327783858,1716477032795,-499.99,0.0002353,2]
[327783859,1716477032804,-3434.089824,0.0002354,2]
[327783860,1716477032814,-1000.0,0.00023571,2]
[327783861,1716477032824,-150.99,0.00023578,2]
[327783862,1716477032833,-158.6489964,0.00023593,2]
[327783863,1716477032843,-151.31470382,0.00023595,2]
[327783864,1716477032852,-159.18081808,0.00023603,2]
[327783865,1716477032861,-750.5394,0.00023614,2]
[327783866,1716477032871,-4077.95920504,0.00023616,2]
[327783867,1716477032881,-10000.0,0.00023619,2]
[327783868,1716477032891,-1000.0,0.00023629,2]
[327783869,1716477032905,-34531.7685515,0.00023635,2]
[327783870,1716477032914,-151.25,0.00023642,2]
[327783871,1716477032923,-151.31470382,0.00023666,2]
[327783872,1716477032933,-2000.0,0.00023677,2]
[327783873,1716477032943,-200.0,0.00023677,2]
[327783874,1716477032952,-151.31470382,0.00023701,2]
[327783875,1716477032963,-2310.26513789,0.00023707,2]
[327783876,1716477032973,-10975.16638205,0.00023714,2]